[Event "Early-Titled-Tuesday-Blitz-March-19-2024"]
[Site "Chess.com"]
[Date "2024.03.19"]
[Round "10"]
[White "Stanbad1"]
[Black "Felix-Rose"]
[Result "1-0"]
[WhiteElo "2538"]
[BlackElo "2278"]
[TimeControl "180+1"]
[EndTime "9:54:11 PDT"]
[Termination "Stanbad1 won by resignation"]

1. d4 {[%clk 0:03:00.9]} 1... d5 {[%clk 0:02:59.1]} 2. Nc3 {[%clk 0:02:59.7]}
2... Nf6 {[%clk 0:02:59.2]} 3. Bf4 {[%clk 0:03:00.3]} 3... c5 {[%clk 0:02:59.5]}
4. e4 {[%clk 0:03:00.6]} 4... Nxe4 {[%clk 0:02:56.1]} 5. Nxe4 {[%clk 0:03:00.4]}
5... dxe4 {[%clk 0:02:55.8]} 6. dxc5 {[%clk 0:03:01.3]} 6... Qa5+ {[%clk
0:02:56.3]} 7. c3 {[%clk 0:03:01.9]} 7... Qxc5 {[%clk 0:02:56.6]} 8. Qa4+ {[%clk
0:03:02.6]} 8... Nc6 {[%clk 0:02:54.1]} 9. Qxe4 {[%clk 0:03:03]} 9... g6 {[%clk
0:02:52.1]} 10. Nf3 {[%clk 0:03:02.8]} 10... Bg7 {[%clk 0:02:52.2]} 11. Rd1
{[%clk 0:03:03.4]} 11... Bf5 {[%clk 0:02:46.8]} 12. Qa4 {[%clk 0:03:02.8]} 12...
O-O {[%clk 0:02:43.8]} 13. Be3 {[%clk 0:03:02.5]} 13... Qa5 {[%clk 0:02:37.3]}
14. Bb5 {[%clk 0:03:01.9]} 14... Qxa4 {[%clk 0:02:26.9]} 15. Bxa4 {[%clk
0:03:02.8]} 15... Rfd8 {[%clk 0:02:26.5]} 16. O-O {[%clk 0:03:00.7]} 16... Bd3
{[%clk 0:02:16.4]} 17. Rfe1 {[%clk 0:02:59]} 17... b5 {[%clk 0:02:16]} 18. Bb3
{[%clk 0:02:10.2]} 18... a5 {[%clk 0:02:14.7]} 19. Bb6 {[%clk 0:02:03.3]} 19...
Rd7 {[%clk 0:01:56.5]} 20. Bc2 {[%clk 0:02:02.1]} 20... Ra6 {[%clk 0:01:05.1]}
21. Bc5 {[%clk 0:01:35.7]} 21... Rd5 {[%clk 0:00:30.6]} 22. Bxd3 {[%clk
0:01:34.1]} 22... Rxc5 {[%clk 0:00:30]} 23. a4 {[%clk 0:01:35]} 23... Ra8 {[%clk
0:00:24.2]} 24. Bxb5 {[%clk 0:01:34.3]} 24... Ne5 {[%clk 0:00:22.5]} 25. Nxe5
{[%clk 0:01:33.6]} 25... Bxe5 {[%clk 0:00:23.4]} 26. g3 {[%clk 0:01:34]} 26...
g5 {[%clk 0:00:22.7]} 27. Rd7 {[%clk 0:01:32.9]} 27... Bd6 {[%clk 0:00:22]} 28.
Bd3 {[%clk 0:01:28]} 28... Rb8 {[%clk 0:00:20.3]} 29. Re2 {[%clk 0:01:27.9]}
29... Kg7 {[%clk 0:00:15.8]} 30. Kg2 {[%clk 0:01:26.5]} 30... Kf6 {[%clk
0:00:14.8]} 31. Bxh7 {[%clk 0:01:24.9]} 31... Re5 {[%clk 0:00:14.4]} 32. Rxe5
{[%clk 0:01:23.9]} 32... Kxe5 {[%clk 0:00:14.8]} 33. Ra7 {[%clk 0:01:20.6]}
33... Rxb2 {[%clk 0:00:14.5]} 34. Rxa5+ {[%clk 0:01:20.8]} 34... Kf6 {[%clk
0:00:14.1]} 35. Be4 {[%clk 0:01:20.4]} 35... Rc2 {[%clk 0:00:14.6]} 36. Bxc2
{[%clk 0:01:20]} 1-0

[Event "Early-Titled-Tuesday-Blitz-March-19-2024"]
[Site "Chess.com"]
[Date "2024.03.19"]
[Round "10"]
[White "dosto07"]
[Black "Tol_Tol"]
[Result "1-0"]
[WhiteElo "2493"]
[BlackElo "2296"]
[TimeControl "180+1"]
[EndTime "9:54:14 PDT"]
[Termination "dosto07 won on time"]

1. e4 {[%clk 0:03:00.9]} 1... c5 {[%clk 0:02:59.7]} 2. Nf3 {[%clk 0:02:59.4]}
2... Nc6 {[%clk 0:03:00.1]} 3. Bb5 {[%clk 0:02:59.1]} 3... e6 {[%clk 0:03:00.1]}
4. O-O {[%clk 0:02:58]} 4... Nge7 {[%clk 0:03:00.3]} 5. Re1 {[%clk 0:02:58.1]}
5... a6 {[%clk 0:03:00.5]} 6. Be2 {[%clk 0:02:56.1]} 6... b5 {[%clk 0:03:01]} 7.
a4 {[%clk 0:02:53.6]} 7... b4 {[%clk 0:03:01]} 8. c3 {[%clk 0:02:52.7]} 8... Bb7
{[%clk 0:03:00.6]} 9. d4 {[%clk 0:02:52.7]} 9... cxd4 {[%clk 0:02:59.8]} 10.
cxd4 {[%clk 0:02:52.9]} 10... d5 {[%clk 0:03:00.3]} 11. e5 {[%clk 0:02:52.9]}
11... Nf5 {[%clk 0:03:00.2]} 12. Bg5 {[%clk 0:02:47.2]} 12... Qb6 {[%clk
0:02:58.3]} 13. Be3 {[%clk 0:02:40.3]} 13... a5 {[%clk 0:02:56.8]} 14. Bb5
{[%clk 0:02:38.7]} 14... Be7 {[%clk 0:02:56]} 15. Nbd2 {[%clk 0:02:38.7]} 15...
O-O {[%clk 0:02:55.8]} 16. Nb3 {[%clk 0:02:38.7]} 16... Nxe3 {[%clk 0:02:50.9]}
17. fxe3 {[%clk 0:02:37.6]} 17... f6 {[%clk 0:02:45]} 18. exf6 {[%clk
0:02:37.5]} 18... Rxf6 {[%clk 0:02:44.9]} 19. Rc1 {[%clk 0:02:38.2]} 19... Raf8
{[%clk 0:02:29.9]} 20. Nc5 {[%clk 0:02:33.9]} 20... Bd6 {[%clk 0:02:11]} 21. Nd7
{[%clk 0:02:26.3]} 21... Qc7 {[%clk 0:02:06.8]} 22. Nxf8 {[%clk 0:02:18]} 22...
Rxf8 {[%clk 0:02:05.6]} 23. Qc2 {[%clk 0:02:09.3]} 23... Rc8 {[%clk 0:02:02.1]}
24. e4 {[%clk 0:01:54.3]} 24... Qf7 {[%clk 0:01:38.1]} 25. e5 {[%clk 0:01:42.4]}
25... Be7 {[%clk 0:01:36.8]} 26. Rf1 {[%clk 0:01:41.7]} 26... Qh5 {[%clk
0:01:31]} 27. Qe2 {[%clk 0:01:29.9]} 27... Bd8 {[%clk 0:01:20.1]} 28. Ba6 {[%clk
0:01:20.5]} 28... Nxd4 {[%clk 0:00:13.9]} 29. Nxd4 {[%clk 0:01:16.1]} 29... Qxe2
{[%clk 0:00:13.9]} 30. Bxe2 {[%clk 0:01:13.8]} 30... Bb6 {[%clk 0:00:12.9]} 31.
Rxc8+ {[%clk 0:01:11.2]} 31... Bxc8 {[%clk 0:00:12.8]} 32. Rd1 {[%clk
0:01:11.1]} 1-0

[Event "Early-Titled-Tuesday-Blitz-March-19-2024"]
[Site "Chess.com"]
[Date "2024.03.19"]
[Round "10"]
[White "PLAYER_2006_M"]
[Black "Mikhail_Golubev"]
[Result "1-0"]
[WhiteElo "2937"]
[BlackElo "2727"]
[TimeControl "180+1"]
[EndTime "9:54:21 PDT"]
[Termination "PLAYER_2006_M won by resignation"]

1. e4 {[%clk 0:03:00.9]} 1... c5 {[%clk 0:02:59.2]} 2. Nf3 {[%clk 0:03:00.5]}
2... d6 {[%clk 0:02:59.5]} 3. d4 {[%clk 0:03:00.2]} 3... Nf6 {[%clk 0:02:59.1]}
4. Nc3 {[%clk 0:02:59.6]} 4... cxd4 {[%clk 0:02:59.3]} 5. Nxd4 {[%clk
0:03:00.5]} 5... g6 {[%clk 0:02:59.3]} 6. f3 {[%clk 0:02:57.4]} 6... Bg7 {[%clk
0:02:59.2]} 7. Be3 {[%clk 0:02:58.1]} 7... Nc6 {[%clk 0:02:59.4]} 8. Bc4 {[%clk
0:02:57.4]} 8... O-O {[%clk 0:02:58.9]} 9. Bb3 {[%clk 0:02:58]} 9... Bd7 {[%clk
0:02:56.8]} 10. h4 {[%clk 0:02:58.6]} 10... Ne5 {[%clk 0:02:52]} 11. Qd2 {[%clk
0:02:56.2]} 11... Rc8 {[%clk 0:02:51.3]} 12. Bh6 {[%clk 0:02:50.4]} 12... Bxh6
{[%clk 0:02:48.4]} 13. Qxh6 {[%clk 0:02:48.9]} 13... Rxc3 {[%clk 0:02:48.1]} 14.
bxc3 {[%clk 0:02:48.5]} 14... Qa5 {[%clk 0:02:40.5]} 15. Qd2 {[%clk 0:02:47.7]}
15... Rc8 {[%clk 0:02:38.6]} 16. Ne2 {[%clk 0:02:35.8]} 16... Bb5 {[%clk
0:02:16.8]} 17. c4 {[%clk 0:02:28.1]} 17... Qxd2+ {[%clk 0:02:11.4]} 18. Kxd2
{[%clk 0:02:25.3]} 18... Nxc4+ {[%clk 0:02:12]} 19. Bxc4 {[%clk 0:02:24.2]}
19... Bxc4 {[%clk 0:02:12.2]} 20. Nf4 {[%clk 0:02:24.1]} 20... Nd7 {[%clk
0:02:07.3]} 21. a4 {[%clk 0:02:19.7]} 21... Ne5 {[%clk 0:02:00.9]} 22. Rhb1
{[%clk 0:02:10.6]} 22... Ba6 {[%clk 0:01:59.3]} 23. Nd5 {[%clk 0:01:55.1]} 23...
Nc4+ {[%clk 0:01:57.7]} 24. Ke1 {[%clk 0:01:52.2]} 24... Kf8 {[%clk 0:01:57]}
25. Rb3 {[%clk 0:01:52.1]} 25... b6 {[%clk 0:01:42.5]} 26. Rc3 {[%clk
0:01:49.4]} 26... Rc5 {[%clk 0:01:40.3]} 27. Kf2 {[%clk 0:01:34.4]} 27... e6
{[%clk 0:01:31.2]} 28. Ne3 {[%clk 0:01:34.7]} 28... Ke7 {[%clk 0:01:16.7]} 29.
Nxc4 {[%clk 0:01:29.3]} 29... Bxc4 {[%clk 0:01:17.2]} 30. g4 {[%clk 0:01:25.6]}
30... h6 {[%clk 0:01:13.2]} 31. Ke3 {[%clk 0:01:25]} 31... e5 {[%clk 0:01:09.4]}
32. f4 {[%clk 0:01:17.8]} 32... exf4+ {[%clk 0:01:08.9]} 33. Kxf4 {[%clk
0:01:18.7]} 33... a6 {[%clk 0:01:08.6]} 34. Rb1 {[%clk 0:01:14.8]} 34... b5
{[%clk 0:01:07.7]} 35. axb5 {[%clk 0:01:15.3]} 35... axb5 {[%clk 0:01:07.7]} 36.
g5 {[%clk 0:01:13]} 36... hxg5+ {[%clk 0:01:06.2]} 37. hxg5 {[%clk 0:01:13.2]}
37... Rc8 {[%clk 0:01:05.9]} 38. Rxb5 {[%clk 0:01:11.5]} 38... Ke6 {[%clk
0:00:46.1]} 39. Rb4 {[%clk 0:01:08.1]} 39... d5 {[%clk 0:00:44.2]} 40. exd5+
{[%clk 0:01:06]} 40... Kxd5 {[%clk 0:00:42.9]} 41. Rbxc4 {[%clk 0:01:06.2]}
41... Rxc4+ {[%clk 0:00:42.4]} 42. Rxc4 {[%clk 0:01:07.1]} 42... Kxc4 {[%clk
0:00:40.8]} 43. Ke5 {[%clk 0:01:08]} 43... f5 {[%clk 0:00:33.3]} 44. gxf6 {[%clk
0:01:04]} 1-0

[Event "Early-Titled-Tuesday-Blitz-March-19-2024"]
[Site "Chess.com"]
[Date "2024.03.19"]
[Round "10"]
[White "BilicVladimir"]
[Black "Slovineanu"]
[Result "1/2-1/2"]
[WhiteElo "2671"]
[BlackElo "2500"]
[TimeControl "180+1"]
[EndTime "9:54:22 PDT"]
[Termination "Game drawn by repetition"]

1. Nf3 {[%clk 0:03:00.9]} 1... Nf6 {[%clk 0:02:56.3]} 2. c4 {[%clk 0:03:01.8]}
2... e6 {[%clk 0:02:55.7]} 3. d4 {[%clk 0:03:02.3]} 3... d5 {[%clk 0:02:55.3]}
4. Nc3 {[%clk 0:03:01.9]} 4... c5 {[%clk 0:02:54.9]} 5. cxd5 {[%clk 0:03:01.8]}
5... Nxd5 {[%clk 0:02:54.4]} 6. e4 {[%clk 0:03:02.3]} 6... Nxc3 {[%clk
0:02:54.4]} 7. bxc3 {[%clk 0:03:03.2]} 7... cxd4 {[%clk 0:02:54.8]} 8. cxd4
{[%clk 0:03:02.4]} 8... Bb4+ {[%clk 0:02:55.3]} 9. Bd2 {[%clk 0:03:02.9]} 9...
Bxd2+ {[%clk 0:02:55.2]} 10. Qxd2 {[%clk 0:03:03.8]} 10... O-O {[%clk 0:02:55]}
11. Bd3 {[%clk 0:03:02.1]} 11... Nc6 {[%clk 0:02:53.7]} 12. e5 {[%clk
0:03:01.9]} 12... Qa5 {[%clk 0:02:51]} 13. Be4 {[%clk 0:02:59.3]} 13... Qxd2+
{[%clk 0:02:45.5]} 14. Kxd2 {[%clk 0:02:59.1]} 14... Bd7 {[%clk 0:02:45.7]} 15.
Ke3 {[%clk 0:02:58.7]} 15... Rac8 {[%clk 0:02:37.9]} 16. Rhc1 {[%clk 0:02:58.1]}
16... Na5 {[%clk 0:02:30.1]} 17. Nd2 {[%clk 0:02:48.7]} 17... Rxc1 {[%clk
0:02:23.3]} 18. Rxc1 {[%clk 0:02:47.8]} 18... Rc8 {[%clk 0:02:23.7]} 19. Rxc8+
{[%clk 0:02:45.3]} 19... Bxc8 {[%clk 0:02:23.6]} 20. d5 {[%clk 0:02:44.2]} 20...
exd5 {[%clk 0:02:21]} 21. Bxd5 {[%clk 0:02:44.3]} 21... Be6 {[%clk 0:02:16.5]}
22. Kd4 {[%clk 0:02:37.1]} 22... Kf8 {[%clk 0:02:07.8]} 23. f4 {[%clk
0:02:34.6]} 23... Ke7 {[%clk 0:01:59.8]} 24. g3 {[%clk 0:02:33]} 24... Kd7
{[%clk 0:01:55.4]} 25. a3 {[%clk 0:02:27.1]} 25... Nc6+ {[%clk 0:01:48.2]} 26.
Bxc6+ {[%clk 0:02:27]} 26... Kxc6 {[%clk 0:01:48.6]} 27. Ne4 {[%clk 0:02:23]}
27... b5 {[%clk 0:01:41.2]} 28. Nd6 {[%clk 0:02:19.9]} 28... a5 {[%clk
0:01:37.4]} 29. f5 {[%clk 0:02:19.6]} 29... Ba2 {[%clk 0:01:33.2]} 30. Ne8
{[%clk 0:02:16.4]} 30... g6 {[%clk 0:01:28.6]} 31. g4 {[%clk 0:02:10.5]} 31...
b4 {[%clk 0:01:22.5]} 32. axb4 {[%clk 0:02:09.5]} 32... axb4 {[%clk 0:01:22.8]}
33. Nf6 {[%clk 0:02:06.6]} 33... h6 {[%clk 0:01:14.9]} 34. Ng8 {[%clk
0:01:48.9]} 34... h5 {[%clk 0:01:11.5]} 35. fxg6 {[%clk 0:01:47.4]} 35... fxg6
{[%clk 0:01:11.1]} 36. Ne7+ {[%clk 0:01:46.9]} 36... Kd7 {[%clk 0:01:06.5]} 37.
Nxg6 {[%clk 0:01:46.3]} 37... hxg4 {[%clk 0:01:05.5]} 38. Nf4 {[%clk 0:01:45.7]}
38... Be6 {[%clk 0:00:59.5]} 39. Nd3 {[%clk 0:01:38.8]} 39... b3 {[%clk
0:00:55.8]} 40. Kc3 {[%clk 0:01:39]} 40... Kc6 {[%clk 0:00:50.6]} 41. Nf4 {[%clk
0:01:38.8]} 41... Bc4 {[%clk 0:00:46.2]} 42. Nh5 {[%clk 0:01:21]} 42... Be6
{[%clk 0:00:32.2]} 43. Nf4 {[%clk 0:01:18.8]} 43... Bc4 {[%clk 0:00:27.9]} 44.
Ng2 {[%clk 0:01:15.8]} 44... Be6 {[%clk 0:00:21.6]} 45. Nf4 {[%clk 0:01:11.2]}
1/2-1/2

[Event "Early-Titled-Tuesday-Blitz-March-19-2024"]
[Site "Chess.com"]
[Date "2024.03.19"]
[Round "10"]
[White "BardArtem"]
[Black "Aswathchess"]
[Result "1-0"]
[WhiteElo "2816"]
[BlackElo "2619"]
[TimeControl "180+1"]
[EndTime "9:54:37 PDT"]
[Termination "BardArtem won by resignation"]

1. e4 {[%clk 0:02:58.9]} 1... c5 {[%clk 0:02:57.6]} 2. c3 {[%clk 0:02:57.6]}
2... e5 {[%clk 0:02:56.8]} 3. Nf3 {[%clk 0:02:57.4]} 3... Nc6 {[%clk 0:02:57.1]}
4. Bc4 {[%clk 0:02:57.5]} 4... Nf6 {[%clk 0:02:57.3]} 5. d3 {[%clk 0:02:57.9]}
5... d5 {[%clk 0:02:56.4]} 6. exd5 {[%clk 0:02:57.9]} 6... Nxd5 {[%clk
0:02:57.3]} 7. O-O {[%clk 0:02:58.3]} 7... Be7 {[%clk 0:02:48.8]} 8. Re1 {[%clk
0:02:58.3]} 8... Qd6 {[%clk 0:01:45.9]} 9. d4 {[%clk 0:02:42.3]} 9... exd4
{[%clk 0:01:31]} 10. cxd4 {[%clk 0:02:37.3]} 10... Nb6 {[%clk 0:01:31.5]} 11.
Bb5 {[%clk 0:02:22.4]} 11... O-O {[%clk 0:01:25.4]} 12. Bxc6 {[%clk 0:02:08.6]}
12... bxc6 {[%clk 0:01:24.9]} 13. Nc3 {[%clk 0:02:04.2]} 13... Bf5 {[%clk
0:01:19.1]} 14. dxc5 {[%clk 0:01:58.1]} 14... Qxd1 {[%clk 0:01:16.9]} 15. Nxd1
{[%clk 0:01:56.6]} 15... Bxc5 {[%clk 0:01:17.8]} 16. Re5 {[%clk 0:01:55.6]}
16... Rfd8 {[%clk 0:01:07.1]} 17. Bg5 {[%clk 0:01:50.2]} 17... Rd5 {[%clk
0:01:06.2]} 18. Rxd5 {[%clk 0:01:47.1]} 18... cxd5 {[%clk 0:01:06.1]} 19. Be3
{[%clk 0:01:46.5]} 19... Bd6 {[%clk 0:01:01.6]} 20. Nc3 {[%clk 0:01:44.4]} 20...
Rc8 {[%clk 0:01:00.5]} 21. Bxb6 {[%clk 0:01:36]} 21... axb6 {[%clk 0:01:00.9]}
22. Nxd5 {[%clk 0:01:36.4]} 22... Rc2 {[%clk 0:01:01.4]} 23. Ne3 {[%clk
0:01:36.5]} 23... Rc5 {[%clk 0:01:01.3]} 24. b4 {[%clk 0:01:27.1]} 24... Rb5
{[%clk 0:00:34.8]} 25. a4 {[%clk 0:01:25.3]} 25... Rxb4 {[%clk 0:00:35.1]} 26.
Nxf5 {[%clk 0:01:25.3]} 26... Bc5 {[%clk 0:00:36]} 27. g3 {[%clk 0:01:21.4]}
27... g6 {[%clk 0:00:36.1]} 28. Ne3 {[%clk 0:01:21.1]} 28... Rb2 {[%clk
0:00:36.2]} 29. a5 {[%clk 0:01:20.4]} 29... bxa5 {[%clk 0:00:28.9]} 30. Rxa5
{[%clk 0:01:21.3]} 30... Bb6 {[%clk 0:00:29.5]} 31. Ra8+ {[%clk 0:01:19.8]}
31... Kg7 {[%clk 0:00:29.4]} 32. h4 {[%clk 0:01:18.3]} 32... Bc5 {[%clk
0:00:28.3]} 33. Rc8 {[%clk 0:01:15.8]} 33... Ba7 {[%clk 0:00:28]} 34. Rc7 {[%clk
0:01:13.1]} 34... Bb8 {[%clk 0:00:27.6]} 35. Rd7 {[%clk 0:01:12.5]} 35... h6
{[%clk 0:00:28]} 36. Nc4 {[%clk 0:01:06.4]} 36... Re2 {[%clk 0:00:26.2]} 37. Nd6
{[%clk 0:01:01.8]} 37... Kf6 {[%clk 0:00:23.5]} 38. Rxf7+ {[%clk 0:00:52.1]}
38... Ke6 {[%clk 0:00:22.6]} 39. Nd4+ {[%clk 0:00:52.4]} 1-0

[Event "Early-Titled-Tuesday-Blitz-March-19-2024"]
[Site "Chess.com"]
[Date "2024.03.19"]
[Round "10"]
[White "emeli_chess"]
[Black "HanSchut"]
[Result "1-0"]
[WhiteElo "2424"]
[BlackElo "2292"]
[TimeControl "180+1"]
[EndTime "9:54:40 PDT"]
[Termination "emeli_chess won by resignation"]

1. d4 {[%clk 0:03:00.9]} 1... Nf6 {[%clk 0:02:59.7]} 2. c4 {[%clk 0:03:00.5]}
2... g6 {[%clk 0:02:59.9]} 3. Nc3 {[%clk 0:03:00.6]} 3... d5 {[%clk 0:03:00.4]}
4. cxd5 {[%clk 0:02:59.8]} 4... Nxd5 {[%clk 0:03:01.3]} 5. e4 {[%clk 0:03:00.2]}
5... Nxc3 {[%clk 0:03:01.9]} 6. bxc3 {[%clk 0:03:00.8]} 6... Bg7 {[%clk
0:03:02.6]} 7. Bc4 {[%clk 0:03:01]} 7... c5 {[%clk 0:03:02.8]} 8. Ne2 {[%clk
0:03:01.4]} 8... Nc6 {[%clk 0:03:03.5]} 9. Be3 {[%clk 0:03:01.1]} 9... O-O
{[%clk 0:03:03.5]} 10. h4 {[%clk 0:03:01.1]} 10... Qc7 {[%clk 0:03:00]} 11. Rc1
{[%clk 0:02:58.1]} 11... Rd8 {[%clk 0:02:56.7]} 12. h5 {[%clk 0:02:56.2]} 12...
Ne5 {[%clk 0:02:49.5]} 13. Bb3 {[%clk 0:02:42.3]} 13... cxd4 {[%clk 0:02:34.6]}
14. cxd4 {[%clk 0:02:42]} 14... Qa5+ {[%clk 0:02:34.1]} 15. Bd2 {[%clk
0:02:14.1]} 15... Nd3+ {[%clk 0:02:26.6]} 16. Kf1 {[%clk 0:02:12.4]} 16... Qb6
{[%clk 0:02:07.8]} 17. hxg6 {[%clk 0:01:54.1]} 17... hxg6 {[%clk 0:02:03.9]} 18.
Bh6 {[%clk 0:01:42]} 18... Nxc1 {[%clk 0:01:53.6]} 19. Qxc1 {[%clk 0:01:20.9]}
19... Bxd4 {[%clk 0:01:32.1]} 20. Nxd4 {[%clk 0:01:08.1]} 20... Qxd4 {[%clk
0:01:27.3]} 21. Be3 {[%clk 0:00:35.5]} 21... Qd3+ {[%clk 0:00:59.7]} 22. Kg1
{[%clk 0:00:34]} 22... Qd6 {[%clk 0:00:29.2]} 23. g3 {[%clk 0:00:28.7]} 23...
Be6 {[%clk 0:00:28.4]} 24. Qb2 {[%clk 0:00:27.5]} 24... f6 {[%clk 0:00:28.6]}
25. e5 {[%clk 0:00:20.4]} 25... Qb6 {[%clk 0:00:14.3]} 26. Bxb6 {[%clk
0:00:19.6]} 1-0

[Event "Early-Titled-Tuesday-Blitz-March-19-2024"]
[Site "Chess.com"]
[Date "2024.03.19"]
[Round "10"]
[White "DraningWaterHi"]
[Black "SharapovEvgeny"]
[Result "0-1"]
[WhiteElo "2276"]
[BlackElo "2573"]
[TimeControl "180+1"]
[EndTime "9:54:49 PDT"]
[Termination "SharapovEvgeny won by checkmate"]

1. d4 {[%clk 0:03:00.9]} 1... Nf6 {[%clk 0:02:59.2]} 2. c4 {[%clk 0:03:00.6]}
2... e6 {[%clk 0:02:59.3]} 3. Nf3 {[%clk 0:02:55.6]} 3... Bb4+ {[%clk
0:02:58.5]} 4. Nbd2 {[%clk 0:02:54]} 4... b6 {[%clk 0:02:56.7]} 5. a3 {[%clk
0:02:53.4]} 5... Bxd2+ {[%clk 0:02:56.2]} 6. Bxd2 {[%clk 0:02:54.3]} 6... Bb7
{[%clk 0:02:56.6]} 7. e3 {[%clk 0:02:55]} 7... O-O {[%clk 0:02:56.3]} 8. Bd3
{[%clk 0:02:55.1]} 8... Be4 {[%clk 0:02:54.5]} 9. Qe2 {[%clk 0:02:52.6]} 9... d5
{[%clk 0:02:53.9]} 10. Ne5 {[%clk 0:02:52.1]} 10... Nbd7 {[%clk 0:02:53.1]} 11.
Nc6 {[%clk 0:02:50]} 11... Qe8 {[%clk 0:02:49.9]} 12. f3 {[%clk 0:02:50]} 12...
Bxd3 {[%clk 0:02:48]} 13. Qxd3 {[%clk 0:02:50.9]} 13... e5 {[%clk 0:02:38]} 14.
dxe5 {[%clk 0:02:49.5]} 14... Nxe5 {[%clk 0:02:31.8]} 15. Nxe5 {[%clk
0:02:48.6]} 15... Qxe5 {[%clk 0:02:31.5]} 16. Bc3 {[%clk 0:02:49.2]} 16... dxc4
{[%clk 0:02:25.2]} 17. Qe2 {[%clk 0:02:48.8]} 17... Qe6 {[%clk 0:02:23.6]} 18.
e4 {[%clk 0:02:48.3]} 18... Rfd8 {[%clk 0:02:19]} 19. O-O {[%clk 0:02:47.3]}
19... Rd3 {[%clk 0:02:16.7]} 20. Rfd1 {[%clk 0:02:46.4]} 20... Rad8 {[%clk
0:02:16.3]} 21. Rac1 {[%clk 0:02:44.3]} 21... b5 {[%clk 0:02:15.6]} 22. a4
{[%clk 0:02:44]} 22... a6 {[%clk 0:02:15.6]} 23. axb5 {[%clk 0:02:43.1]} 23...
axb5 {[%clk 0:02:15.8]} 24. b3 {[%clk 0:02:36.3]} 24... h6 {[%clk 0:02:05.5]}
25. bxc4 {[%clk 0:02:35.8]} 25... bxc4 {[%clk 0:02:05.7]} 26. Qc2 {[%clk
0:02:26.9]} 26... Qb6+ {[%clk 0:01:47]} 27. Kh1 {[%clk 0:02:26.4]} 27... Rxd1+
{[%clk 0:01:34.7]} 28. Rxd1 {[%clk 0:02:25.6]} 28... Rxd1+ {[%clk 0:01:34.7]}
29. Qxd1 {[%clk 0:02:26.5]} 29... Qb3 {[%clk 0:01:34.8]} 30. Qc1 {[%clk
0:02:19.7]} 30... Ne8 {[%clk 0:01:30]} 31. h4 {[%clk 0:02:16.8]} 31... Nd6
{[%clk 0:01:27.8]} 32. Be5 {[%clk 0:02:13.9]} 32... f6 {[%clk 0:01:24.5]} 33.
Bf4 {[%clk 0:02:11.3]} 33... c3 {[%clk 0:01:22.1]} 34. e5 {[%clk 0:02:08.9]}
34... fxe5 {[%clk 0:01:19.1]} 35. Bxe5 {[%clk 0:02:09.8]} 35... c2 {[%clk
0:01:14.3]} 36. Bb2 {[%clk 0:01:55.2]} 36... Nc4 {[%clk 0:01:13.8]} 37. Qe1
{[%clk 0:01:42.7]} 37... Qe3 {[%clk 0:00:56.5]} 38. Qa1 {[%clk 0:00:14.5]} 38...
Nxb2 {[%clk 0:00:52.1]} 39. Qa8+ {[%clk 0:00:13.6]} 39... Kh7 {[%clk 0:00:50.1]}
40. Qa2 {[%clk 0:00:13.3]} 40... c1=Q+ {[%clk 0:00:48.8]} 41. Kh2 {[%clk
0:00:14.2]} 41... Qf4+ {[%clk 0:00:39.9]} 42. Kh3 {[%clk 0:00:15.1]} 42... Qh1#
{[%clk 0:00:38.6]} 0-1

[Event "Early-Titled-Tuesday-Blitz-March-19-2024"]
[Site "Chess.com"]
[Date "2024.03.19"]
[Round "10"]
[White "Boorchess"]
[Black "secrethawk1"]
[Result "1-0"]
[WhiteElo "2554"]
[BlackElo "2420"]
[TimeControl "180+1"]
[EndTime "9:54:51 PDT"]
[Termination "Boorchess won by checkmate"]

1. d4 {[%clk 0:03:00.9]} 1... d5 {[%clk 0:02:58.6]} 2. c4 {[%clk 0:03:00.2]}
2... c6 {[%clk 0:02:57.2]} 3. cxd5 {[%clk 0:03:00]} 3... cxd5 {[%clk 0:02:58.1]}
4. Nc3 {[%clk 0:02:59.9]} 4... Nc6 {[%clk 0:02:57]} 5. e4 {[%clk 0:03:00]} 5...
dxe4 {[%clk 0:02:52.3]} 6. d5 {[%clk 0:02:59.2]} 6... Nb8 {[%clk 0:02:43.5]} 7.
f3 {[%clk 0:02:59.3]} 7... exf3 {[%clk 0:02:40.6]} 8. Nxf3 {[%clk 0:02:59]} 8...
Nf6 {[%clk 0:02:39.9]} 9. Bc4 {[%clk 0:02:57.3]} 9... e6 {[%clk 0:02:33.8]} 10.
Bb5+ {[%clk 0:02:50.7]} 10... Bd7 {[%clk 0:02:22.9]} 11. dxe6 {[%clk 0:02:49.7]}
11... fxe6 {[%clk 0:02:15.7]} 12. Qe2 {[%clk 0:02:44.5]} 12... Nc6 {[%clk
0:02:13.4]} 13. Bf4 {[%clk 0:02:14.8]} 13... Bb4 {[%clk 0:02:04]} 14. O-O {[%clk
0:02:12.3]} 14... O-O {[%clk 0:02:00.1]} 15. Rad1 {[%clk 0:02:03.6]} 15... Qe7
{[%clk 0:01:48.2]} 16. Ng5 {[%clk 0:01:54.1]} 16... a6 {[%clk 0:01:32.1]} 17.
Bc4 {[%clk 0:01:52.1]} 17... Rfe8 {[%clk 0:01:27.2]} 18. Nce4 {[%clk 0:01:46.6]}
18... h6 {[%clk 0:01:21.8]} 19. Nxf6+ {[%clk 0:01:31.8]} 19... gxf6 {[%clk
0:01:00.9]} 20. Ne4 {[%clk 0:00:55.4]} 20... Rad8 {[%clk 0:00:58.5]} 21. Bxh6
{[%clk 0:00:53]} 21... f5 {[%clk 0:00:51.6]} 22. Bg5 {[%clk 0:00:51.5]} 22...
Qg7 {[%clk 0:00:40.6]} 23. Nf6+ {[%clk 0:00:50.5]} 23... Kf8 {[%clk 0:00:24.9]}
24. Qh5 {[%clk 0:00:49.8]} 24... Be7 {[%clk 0:00:05]} 25. Rxf5 {[%clk 0:00:39]}
25... exf5 {[%clk 0:00:03.3]} 26. Nh7+ {[%clk 0:00:39]} 26... Qxh7 {[%clk
0:00:02.3]} 27. Bh6+ {[%clk 0:00:33]} 27... Qg7 {[%clk 0:00:02.4]} 28. Qg6
{[%clk 0:00:24.1]} 28... Bf6 {[%clk 0:00:01.5]} 29. Qxf6# {[%clk 0:00:23]} 1-0